bitfinex-derivatives/quotes_BNBF0:USTF0_20250603
["timestamp","ask_amount","ask_price","bid_price","bid_amount"]
[1748982499338,1.02207915,660.77,660.53,0.30278715]
[1748982499532,1.02207915,660.76,660.53,0.30278715]
[1748982499737,1.02207915,660.75,660.53,0.30278715]
[1748982499937,1.02207915,660.74,660.53,0.30278715]
[1748982500132,1.02207915,660.73,660.53,0.30278715]
[1748982500335,1.02207915,660.72,660.53,0.30278715]
[1748982500531,1.02207915,660.71,660.53,0.30278715]
[1748982500740,1.4831859,661.02,660.53,0.30278715]
[1748982500932,1.10692401,660.85,660.53,0.30278715]
[1748982501136,1.02239279,660.84,660.53,0.30278715]
[1748982501344,1.02239279,660.83,660.53,0.30278715]
[1748982501538,1.02239279,660.82,660.53,0.30278715]
[1748982501734,1.02239279,660.81,660.53,0.30278715]
[1748982501940,1.02239279,660.8,660.53,0.30278715]
[1748982502240,1.02201013,660.79,660.53,0.30278715]
[1748982502441,1.02201013,660.78,660.53,0.30278715]
[1748982502734,1.02201013,660.77,660.53,0.30278715]
[1748982502931,1.02201013,660.76,660.53,0.30278715]
[1748982503135,1.10724929,660.97,660.53,0.30278715]
[1748982503136,1.02201013,660.75,660.53,0.30278715]
[1748982503332,1.02201013,660.74,660.53,0.30278715]
[1748982503536,1.4831859,661.17,660.53,0.30278715]
[1748982503537,1.02201013,660.73,660.53,0.30278715]
[1748982503732,1.02201013,660.72,660.53,0.30278715]
[1748982503932,1.02201013,660.71,660.53,0.30278715]
[1748982504136,1.02201013,660.7,660.53,0.30278715]
[1748982504336,1.02201013,660.69,660.53,0.30278715]
[1748982504536,1.02201013,660.68,660.53,0.30278715]
[1748982504738,1.02201013,660.67,660.53,0.30278715]
[1748982505033,1.02201013,660.66,660.53,0.30278715]
[1748982505234,1.10724929,660.89,660.53,0.30278715]
[1748982505433,1.02332178,660.88,660.53,0.30278715]
[1748982505637,1.10724929,660.89,660.53,0.30278715]
[1748982505638,1.02332178,660.87,660.53,0.30278715]
[1748982505939,3.71005592,661.63,660.53,0.30278715]
[1748982505940,1.02332178,660.86,660.53,0.30278715]
[1748982506138,1.02332178,660.85,660.53,0.30278715]
[1748982506341,1.02332178,660.84,660.53,0.30278715]
[1748982506539,1.10724929,660.92,660.53,0.30278715]
[1748982506540,1.02332178,660.83,660.53,0.30278715]
[1748982506740,1.02332178,660.82,660.53,0.30278715]
[1748982506941,1.02332178,660.81,660.53,0.30278715]
[1748982507242,1.02332178,660.8,660.53,0.30278715]
[1748982507440,1.02332178,660.79,660.53,0.30278715]
[1748982507740,1.02332178,660.78,660.53,0.30278715]
[1748982507940,1.02332178,660.77,660.53,0.30278715]
[1748982508239,1.02332178,660.76,660.53,0.30278715]
[1748982508541,1.02450109,660.75,660.53,0.30278715]
[1748982508743,1.02450109,660.74,660.53,0.30278715]
[1748982509041,1.10972114,660.96,660.53,0.30278715]
[1748982509337,1.02468079,660.95,660.53,0.30278715]
[1748982509542,1.02468079,660.94,660.53,0.30278715]
[1748982509842,1.02468079,660.93,660.53,0.30278715]
[1748982510043,1.02468079,660.92,660.53,0.30278715]
[1748982510238,3.71005592,661.7,660.53,0.30278715]
[1748982510239,1.02468079,660.91,660.53,0.30278715]
[1748982510440,1.02468079,660.9,660.53,0.30278715]
[1748982510744,1.02468079,660.89,660.53,0.30278715]
[1748982510945,1.02468079,660.88,660.53,0.30278715]
[1748982511145,1.02468079,660.87,660.53,0.30278715]
[1748982511344,1.02468079,660.86,660.53,0.30278715]
[1748982511539,1.02468079,660.85,660.53,0.30278715]
[1748982511743,1.10991591,660.95,660.53,0.30278715]
[1748982511744,1.02468079,660.84,660.53,0.30278715]
[1748982511942,1.02468079,660.83,660.53,0.30278715]
[1748982512142,1.02468079,660.82,660.53,0.30278715]
[1748982512345,1.02536553,660.81,660.53,0.30278715]
[1748982512540,1.02536553,660.8,660.53,0.30278715]
[1748982512741,1.11054188,660.96,660.53,0.30278715]
[1748982512742,1.02536553,660.79,660.53,0.30278715]
[1748982512947,1.02536553,660.78,660.53,0.30278715]
[1748982513246,1.02536553,660.77,660.53,0.30278715]
[1748982513447,1.02536553,660.76,660.53,0.30278715]
[1748982513644,1.02536553,660.75,660.53,0.30278715]
[1748982513844,1.02536553,660.74,660.53,0.30278715]
[1748982514144,1.02605122,660.73,660.53,0.30278715]
[1748982514346,1.11054188,660.96,660.53,0.30278715]
[1748982514548,1.02610021,660.95,660.53,0.30278715]
[1748982514744,1.02610021,660.94,660.53,0.30278715]
[1748982514945,1.02610021,660.93,660.53,0.30278715]
[1748982515245,1.02610021,660.92,660.53,0.30278715]
[1748982515445,1.02610021,660.91,660.53,0.30278715]
[1748982515642,1.02610021,660.9,660.53,0.30278715]
[1748982515942,1.02610021,660.89,660.53,0.30278715]
[1748982516147,1.0277905,660.88,660.53,0.30278715]
[1748982516348,1.0277905,660.87,660.53,0.30278715]
[1748982516647,1.11174265,661.01,660.53,0.30278715]
[1748982516648,1.0277905,660.86,660.53,0.30278715]
[1748982516845,1.0277905,660.85,660.53,0.30278715]
[1748982517042,1.0277905,660.84,660.53,0.30278715]
[1748982517241,1.11174265,661.01,660.53,0.30278715]
[1748982517242,1.0277905,660.83,660.53,0.30278715]
[1748982517442,1.0277905,660.82,660.53,0.30278715]
[1748982517741,1.0277905,660.81,660.53,0.30278715]
[1748982518047,1.0277905,660.8,660.53,0.30278715]
[1748982518246,1.0277905,660.79,660.53,0.30278715]
[1748982518443,1.0277905,660.78,660.53,0.30278715]
[1748982518647,1.0277905,660.77,660.53,0.30278715]
[1748982518848,1.0277905,660.76,660.53,0.30278715]
[1748982519042,1.0277905,660.75,660.53,0.30278715]
[1748982519243,1.0277905,660.74,660.53,0.30278715]
[1748982519442,1.0277905,660.73,660.53,0.30278715]
[1748982519643,1.0277905,660.72,660.53,0.30278715]
[1748982519842,1.0277905,660.71,660.53,0.30278715]
[1748982520045,1.02955824,660.7,660.53,0.30278715]
[1748982520248,1.02955824,660.69,660.53,0.30278715]
[1748982520443,1.11362752,660.64,660.53,0.30278715]
[1748982520642,3.71005592,662.09,659.49,0.26360841]
[1748982520643,1.02955824,660.63,659.49,0.26360841]
[1748982520950,1.11263134,660.43,659.51,0.30325544]
[1748982521147,1.02955824,660.42,659.51,0.30325544]
[1748982521342,3.71005592,661.66,659.51,0.30325544]
[1748982521343,1.11263134,660.39,659.51,0.30325544]
[1748982521545,1.02955824,660.41,659.51,0.30325544]
[1748982521546,1.02955824,660.38,659.51,0.30325544]
[1748982521744,1.11263134,660.36,659.51,0.30325544]
[1748982522048,1.02955824,660.35,659.51,0.30325544]
[1748982522249,1.02955824,660.34,659.51,0.30325544]
[1748982522447,1.11263134,660.19,659.51,0.30325544]
[1748982522750,1.02955824,660.18,659.51,0.30325544]
[1748982522946,2.14218958,660.17,659.51,0.30325544]
[1748982523155,1.11263134,659.88,659.51,0.30325544]
[1748982523348,1.11263134,659.81,659.51,0.30325544]
[1748982523550,1.4831859,659.98,659.51,0.30325544]
[1748982523551,1.02955824,659.8,659.51,0.30325544]
[1748982523746,1.11263134,659.92,659.51,0.30325544]
[1748982523747,1.02147346,659.79,659.51,0.30325544]
[1748982523946,1.02147346,659.78,659.51,0.30325544]
[1748982524152,3.71005592,661.14,659.51,0.30325544]
[1748982524153,1.02147346,659.77,659.51,0.30325544]
[1748982524451,1.02147346,659.76,659.51,0.30325544]
[1748982524651,1.02147346,659.75,659.51,0.30325544]
[1748982524853,1.02147346,659.74,659.51,0.30325544]
[1748982525151,1.10518647,660.04,659.51,0.30325544]
[1748982525353,1.02002353,660.03,659.51,0.30325544]
[1748982525552,1.02002353,660.02,659.51,0.30325544]
[1748982525746,1.02002353,660.01,659.51,0.30325544]
[1748982525946,1.02002353,660.0,659.51,0.30325544]
[1748982526147,1.02002353,659.99,659.51,0.30325544]
[1748982526353,1.02002353,659.98,659.51,0.30325544]
[1748982526555,1.02002353,659.97,659.51,0.30325544]
[1748982526754,1.02002353,659.96,659.51,0.30325544]
[1748982526950,1.02002353,659.95,659.51,0.30325544]
[1748982527149,1.02002353,659.94,659.51,0.30325544]
[1748982527354,1.02002353,659.93,659.51,0.30325544]
[1748982527554,1.01761187,659.92,659.51,0.30325544]
[1748982527857,1.01761187,659.91,659.51,0.30325544]
[1748982528054,1.01761187,659.9,659.51,0.30325544]
[1748982528248,1.01761187,659.89,659.51,0.30325544]
[1748982528453,1.01761187,659.88,659.51,0.30325544]
[1748982528651,1.01761187,659.87,659.51,0.30325544]
[1748982528958,1.01761187,659.86,659.51,0.30325544]
[1748982529150,1.10069049,660.24,659.51,0.30325544]
[1748982529355,1.01689177,660.23,659.51,0.30325544]
[1748982529550,1.01689177,660.22,659.51,0.30325544]
[1748982529752,1.01689177,660.21,659.51,0.30325544]
[1748982529956,1.01689177,660.2,659.51,0.30325544]
[1748982530154,1.01689177,660.19,659.51,0.30325544]
[1748982530355,1.01689177,660.18,659.51,0.30325544]
[1748982530560,1.01689177,660.17,659.51,0.30325544]
[1748982530762,1.01689177,660.16,659.51,0.30325544]
[1748982530959,1.01689177,660.15,659.51,0.30325544]
[1748982531161,1.01689177,660.14,659.51,0.30325544]
[1748982531464,1.01584504,660.13,659.51,0.30325544]
[1748982531664,1.01584504,660.12,659.51,0.30325544]
[1748982531861,1.01584504,660.11,659.51,0.30325544]
[1748982532061,1.4831859,660.51,659.51,0.30325544]
[1748982532062,1.01584504,660.1,659.51,0.30325544]
[1748982532256,1.01584504,660.09,659.51,0.30325544]
[1748982532460,1.01584504,660.08,659.51,0.30325544]
[1748982532663,1.01584504,660.07,659.51,0.30325544]
[1748982532862,1.01584504,660.06,659.51,0.30325544]
[1748982533167,1.01584504,660.05,659.51,0.30325544]
[1748982533363,1.01584504,660.04,659.51,0.30325544]
[1748982533563,1.01584504,660.03,659.51,0.30325544]
[1748982533763,1.01584504,660.02,659.51,0.30325544]
[1748982533964,1.01584504,660.01,659.51,0.30325544]
[1748982534162,1.01584504,660.0,659.51,0.30325544]
[1748982534466,1.01584504,659.99,659.51,0.30325544]
[1748982534667,1.01584504,659.98,659.51,0.30325544]
[1748982534959,1.01584504,659.97,659.51,0.30325544]
[1748982535164,1.01422443,659.96,659.51,0.30325544]
[1748982535367,3.71005592,661.56,659.51,0.30325544]
[1748982535368,1.09720253,660.32,659.51,0.30325544]
[1748982535568,2.23209683,660.72,659.51,0.30325544]
[1748982535569,1.0142036,660.31,659.51,0.30325544]
[1748982535769,1.09720253,660.33,659.51,0.30325544]
[1748982535770,1.0142036,660.3,659.51,0.30325544]
[1748982535970,2.11140613,660.29,659.51,0.30325544]
[1748982536165,1.0142036,660.28,659.51,0.30325544]
[1748982536365,1.0142036,660.27,659.51,0.30325544]
[1748982536565,1.0142036,660.26,659.51,0.30325544]
[1748982536769,1.0142036,660.25,659.51,0.30325544]
[1748982536966,1.0142036,660.24,659.51,0.30325544]
[1748982537269,1.0142036,660.23,659.51,0.30325544]
[1748982537469,1.0142036,660.22,659.51,0.30325544]
[1748982537665,1.0142036,660.21,659.51,0.30325544]
[1748982537872,1.0142036,660.2,659.51,0.30325544]
[1748982538068,1.0142036,660.19,659.51,0.30325544]
[1748982538269,1.0142036,660.18,659.51,0.30325544]
[1748982538471,1.0142036,660.17,659.51,0.30325544]
[1748982538671,1.0142036,660.16,659.51,0.30325544]
[1748982538867,1.01245165,660.15,659.51,0.30325544]
[1748982539072,1.01245165,660.14,659.51,0.30325544]
[1748982539268,1.01245165,660.13,659.51,0.30325544]
[1748982539473,1.01245165,660.12,659.51,0.30325544]
[1748982539675,2.23209683,660.81,659.51,0.30325544]
[1748982539676,1.01245165,660.11,659.51,0.30325544]
[1748982539975,1.01245165,660.1,659.51,0.30325544]
[1748982540173,1.01245165,660.09,659.51,0.30325544]
[1748982540374,3.71005592,661.67,659.51,0.30325544]
[1748982540375,1.01245165,660.08,659.51,0.30325544]
[1748982540674,1.09600003,660.35,659.51,0.30325544]
[1748982540877,2.1084014,660.34,659.51,0.30325544]
[1748982541069,1.01240137,660.33,659.51,0.30325544]
[1748982541271,1.01240137,660.32,659.51,0.30325544]
[1748982541476,1.01242469,660.31,659.51,0.30325544]
[1748982541775,1.09595699,660.34,659.51,0.30325544]
[1748982541776,1.01242469,660.3,659.51,0.30325544]
[1748982541972,1.01242469,660.29,659.51,0.30325544]
[1748982542173,1.01242469,660.28,659.51,0.30325544]
[1748982542369,1.01242469,660.27,659.51,0.30325544]
[1748982542575,1.01242469,660.26,659.51,0.30325544]
[1748982542770,1.09595699,660.39,659.51,0.30325544]
[1748982542771,1.01242469,660.25,659.51,0.30325544]
[1748982542972,1.01242469,660.24,659.51,0.30325544]
[1748982543174,1.01242469,660.23,659.51,0.30325544]
[1748982543369,1.01242469,660.22,659.51,0.30325544]
[1748982543676,1.4831859,660.55,659.51,0.30325544]
[1748982543878,1.09585369,660.39,659.51,0.30325544]
[1748982544075,1.01204184,660.38,659.51,0.30325544]
[1748982544276,1.01204184,660.37,659.51,0.30325544]
[1748982544476,1.01204184,660.36,659.51,0.30325544]
[1748982544778,1.01204184,660.35,659.51,0.30325544]
[1748982544971,1.01204184,660.34,659.51,0.30325544]
[1748982545173,1.09585369,660.4,659.51,0.30325544]
[1748982545174,1.01204184,660.33,659.51,0.30325544]
[1748982545370,1.01189418,660.32,659.51,0.30325544]
[1748982545577,1.01189418,660.31,659.51,0.30325544]
[1748982545770,1.01189418,660.3,659.51,0.30325544]
[1748982545974,1.01189418,660.29,659.51,0.30325544]
[1748982546276,1.01189418,660.28,659.51,0.30325544]
[1748982546480,1.01189418,660.27,659.51,0.30325544]
[1748982546771,1.01189418,660.26,659.51,0.30325544]
[1748982546970,1.01189418,660.25,659.51,0.30325544]
[1748982547170,1.01189418,660.24,659.51,0.30325544]
[1748982547375,1.01189418,660.23,659.51,0.30325544]
[1748982547675,1.01189418,660.22,659.51,0.30325544]
[1748982547873,1.01189418,660.21,659.51,0.30325544]
[1748982548076,1.01189418,660.2,659.51,0.30325544]
[1748982548276,1.01189418,660.19,659.51,0.30325544]
[1748982548473,1.01189418,660.18,659.51,0.30325544]
[1748982548673,1.01189418,660.17,659.51,0.30325544]
[1748982548873,1.01189418,660.16,659.51,0.30325544]
[1748982549073,1.4831859,660.47,659.51,0.30325544]
[1748982549271,1.09566515,660.26,659.51,0.30325544]
[1748982549577,1.09566515,660.19,659.51,0.30325544]
[1748982549773,1.09566515,660.17,659.51,0.30325544]
[1748982549976,3.71005592,661.18,659.51,0.30325544]
[1748982549977,1.09566515,660.09,659.51,0.30325544]
[1748982550174,1.09566515,660.07,659.51,0.30325544]
[1748982550376,1.01198885,660.06,659.51,0.30325544]
[1748982550571,1.01198885,660.05,659.51,0.30325544]
[1748982550775,1.01198885,660.04,659.51,0.30325544]
[1748982550971,1.01198885,660.03,659.51,0.30325544]
[1748982551176,1.01198885,660.02,659.51,0.30325544]
[1748982551371,1.01198885,660.01,659.51,0.30325544]
[1748982551573,1.01198885,660.0,659.51,0.30325544]
[1748982551774,1.01198885,659.99,659.51,0.30325544]
[1748982552071,1.01198885,659.98,659.51,0.30325544]
[1748982552275,1.01198885,659.97,659.51,0.30325544]
[1748982552572,1.01198885,659.96,659.51,0.30325544]
[1748982552777,1.01199228,659.95,659.51,0.30325544]
[1748982552977,1.01199228,659.94,659.51,0.30325544]
[1748982553175,1.01199228,659.93,659.51,0.30325544]
[1748982553375,1.01199228,659.92,659.51,0.30325544]
[1748982553576,1.01199228,659.91,659.51,0.30325544]
[1748982553776,1.01199228,659.9,659.51,0.30325544]
[1748982553975,1.01199228,659.89,659.51,0.30325544]
[1748982554177,1.01199228,659.88,659.51,0.30325544]
[1748982554375,1.01199228,659.87,659.51,0.30325544]
[1748982554574,1.01199228,659.86,659.51,0.30325544]
[1748982554773,1.01199228,659.85,659.51,0.30325544]
[1748982554973,1.01199228,659.84,659.51,0.30325544]
[1748982555177,1.01199228,659.83,659.51,0.30325544]
[1748982555372,1.01199228,659.82,659.51,0.30325544]
[1748982555576,1.01199228,659.81,659.51,0.30325544]
[1748982555773,1.09525197,660.24,659.51,0.30325544]
[1748982555979,1.01198189,660.23,659.51,0.30325544]
[1748982556172,1.01198189,660.22,659.51,0.30325544]
[1748982556372,1.01198189,660.21,659.51,0.30325544]
[1748982556571,1.4831859,660.49,659.51,0.30325544]
[1748982556773,1.09541604,660.2,659.51,0.30325544]
[1748982556978,2.10715982,660.19,659.51,0.30325544]
[1748982557171,1.01174378,660.18,659.51,0.30325544]
[1748982557376,1.01174378,660.17,659.51,0.30325544]
[1748982557576,1.01174378,660.16,659.51,0.30325544]
[1748982557776,1.01174378,660.15,659.51,0.30325544]
[1748982557976,1.01174378,660.14,659.51,0.30325544]
[1748982558173,1.09541604,660.19,659.51,0.30325544]
[1748982558174,1.01174378,660.13,659.51,0.30325544]
[1748982558377,1.01174378,660.12,659.51,0.30325544]
[1748982558576,1.01174378,660.11,659.51,0.30325544]
[1748982558875,1.01174378,660.1,659.51,0.30325544]
[1748982559179,1.01174378,660.09,659.51,0.30325544]
[1748982559378,1.01174378,660.08,659.51,0.30325544]
[1748982559580,1.01174378,660.07,659.51,0.30325544]
[1748982559775,1.01174378,660.06,659.51,0.30325544]
[1748982559982,1.01174378,660.05,659.51,0.30325544]
[1748982560182,1.01174378,660.04,659.51,0.30325544]
[1748982560381,1.01174378,660.03,659.51,0.30325544]
[1748982560583,1.01165172,660.02,659.51,0.30325544]
[1748982560782,1.01165172,660.01,659.51,0.30325544]
[1748982560976,1.01165172,660.0,659.51,0.30325544]
[1748982561181,1.01165172,659.99,659.51,0.30325544]
[1748982561381,1.01165172,659.98,659.51,0.30325544]
[1748982561579,1.01165172,659.97,659.51,0.30325544]
[1748982561779,1.01165172,659.96,659.51,0.30325544]
[1748982561981,1.01165172,659.95,659.51,0.30325544]
[1748982562181,1.01165172,659.94,659.51,0.30325544]
[1748982562482,1.01165172,659.93,659.51,0.30325544]
[1748982562683,1.01165172,659.92,659.51,0.30325544]
[1748982562883,1.01165172,659.91,659.51,0.30325544]
[1748982563181,1.01165172,659.9,659.51,0.30325544]
[1748982563377,1.01165172,659.89,659.51,0.30325544]
[1748982563582,1.01165172,659.88,659.51,0.30325544]
[1748982563782,1.01165172,659.87,659.51,0.30325544]
[1748982563977,1.01165172,659.86,659.51,0.30325544]
[1748982564177,1.01165172,659.85,659.51,0.30325544]
[1748982564380,1.4831859,660.46,659.51,0.30325544]
[1748982564577,1.09600937,660.22,659.51,0.30325544]
[1748982564780,1.01220515,660.21,659.51,0.30325544]
[1748982565080,1.01220515,660.2,659.51,0.30325544]
[1748982565279,1.4831859,660.45,659.51,0.30325544]
[1748982565478,1.09606844,660.22,659.51,0.30325544]
[1748982565683,1.01227812,660.21,659.51,0.30325544]
[1748982565878,1.01227812,660.2,659.51,0.30325544]
[1748982566184,1.01227812,660.19,659.51,0.30325544]
[1748982566383,1.01227812,660.18,659.51,0.30325544]
[1748982566578,1.01227812,660.17,659.51,0.30325544]
[1748982566779,1.09606844,660.23,659.51,0.30325544]
[1748982566780,1.01227812,660.16,659.51,0.30325544]
[1748982566984,3.71005592,661.77,659.51,0.30325544]
[1748982566985,1.09606844,660.03,659.51,0.30325544]
[1748982567179,1.09606844,659.83,659.51,0.30325544]
[1748982567381,1.01227812,659.82,659.51,0.30325544]
[1748982567583,1.01227812,659.81,659.51,0.30325544]
[1748982567779,1.01227812,659.8,659.51,0.30325544]
[1748982567983,1.01227812,659.79,659.51,0.30325544]
[1748982568185,1.01227812,659.78,659.51,0.30325544]
[1748982568385,1.01240039,659.77,659.51,0.30325544]
[1748982568685,1.01240039,659.76,659.51,0.30325544]
[1748982568886,1.01240039,659.75,659.51,0.30325544]
[1748982569080,1.01240039,659.74,659.51,0.30325544]
[1748982569283,1.01240039,659.73,659.51,0.30325544]
[1748982569481,1.01240039,659.72,659.51,0.30325544]
[1748982569787,3.71005592,661.21,659.51,0.30325544]
[1748982569788,1.01240039,659.71,659.51,0.30325544]
[1748982570085,1.01240039,659.7,659.51,0.30325544]
[1748982570285,1.01240039,659.69,659.51,0.30325544]
[1748982570581,1.01240039,659.68,658.73,0.26390927]
[1748982570780,1.01240039,659.67,658.75,0.30360531]
[1748982570986,1.01240039,659.66,658.75,0.30360531]
[1748982571186,1.01240039,659.65,658.84,0.47840822]
[1748982571389,1.01240039,659.64,658.86,0.78196284]
[1748982571588,1.01240039,659.63,658.87,0.30355001]
[1748982571782,1.01240039,659.62,658.87,0.30355001]
[1748982571984,1.01240039,659.61,658.87,0.78195823]
[1748982572187,1.01404645,659.6,658.99,0.47840822]
[1748982572383,1.0980057,659.91,659.04,0.47840822]
[1748982572583,2.11211986,659.9,659.03,0.47840822]
[1748982572782,3.71005592,660.97,659.07,0.47840822]
[1748982572783,2.11211986,659.89,659.07,0.47840822]
[1748982572984,1.01411416,659.88,659.09,0.30344869]
[1748982573183,1.01411416,659.87,659.09,0.30344869]
[1748982573384,1.01411416,659.86,659.09,0.30344869]
[1748982573688,1.01411416,659.85,659.09,0.30344869]
[1748982573888,1.01411416,659.84,659.09,0.30344869]
[1748982574088,1.01411416,659.83,659.09,0.30344869]
[1748982574284,1.01411416,659.82,659.09,0.30344869]
[1748982574593,1.01411416,659.81,659.09,0.30344869]
[1748982574789,1.01411416,659.8,659.09,0.30344869]
[1748982574994,1.01411416,659.79,659.09,0.30344869]
[1748982575191,1.01411416,659.78,659.09,0.30344869]
[1748982575383,1.01411416,659.77,659.09,0.30344869]
[1748982575592,1.01411416,659.76,659.09,0.30344869]
[1748982575884,1.4831859,660.11,659.09,0.30344869]
[1748982576091,1.10142666,659.92,659.09,0.30344869]
[1748982576290,1.01717077,659.91,659.09,0.30344869]
[1748982576491,1.01717077,659.9,659.09,0.30344869]
[1748982576691,1.01717077,659.89,659.09,0.30344869]
[1748982576891,1.01717077,659.88,659.09,0.30344869]
[1748982577092,1.01717077,659.87,659.09,0.30344869]
[1748982577289,1.01717077,659.86,659.09,0.30344869]
[1748982577593,1.01717077,659.85,659.09,0.30344869]
[1748982577887,1.10142666,659.99,659.09,0.30344869]
[1748982577888,1.01717077,659.84,659.09,0.30344869]
[1748982578090,1.01717077,659.83,659.09,0.30344869]
[1748982578287,1.01717077,659.82,659.09,0.30344869]
[1748982578491,1.01717077,659.81,659.09,0.30344869]
[1748982578691,1.01717077,659.8,659.09,0.30344869]
[1748982578894,1.01717077,659.79,659.09,0.30344869]
[1748982579193,1.01717077,659.78,659.09,0.30344869]
[1748982579389,1.01717077,659.77,659.09,0.30344869]
[1748982579593,1.01717077,659.76,659.09,0.30344869]
[1748982579794,1.4831859,660.18,659.09,0.30344869]
[1748982579990,1.10732801,659.97,659.09,0.30344869]
[1748982580194,1.02268068,659.96,659.09,0.30344869]
[1748982580394,1.02268068,659.95,659.09,0.30344869]
[1748982580595,1.02268068,659.94,659.09,0.30344869]
[1748982580895,1.02268068,659.93,659.09,0.30344869]
[1748982581094,1.02268068,659.92,659.09,0.30344869]
[1748982581296,1.02268068,659.91,659.09,0.30344869]
[1748982581488,1.02268068,659.9,659.09,0.30344869]
[1748982581689,1.02268068,659.89,659.09,0.30344869]
[1748982581890,1.02268068,659.88,659.09,0.30344869]
[1748982582094,1.02268068,659.87,659.09,0.30344869]
[1748982582295,1.02268068,659.86,659.09,0.30344869]
[1748982582495,1.02268068,659.85,659.09,0.30344869]
[1748982582795,1.02268068,659.84,659.09,0.30344869]
[1748982583090,1.02268068,659.83,659.09,0.30344869]
[1748982583293,1.02268068,659.82,659.09,0.30344869]
[1748982583496,1.02268068,659.81,659.09,0.30344869]
[1748982583694,1.4831859,660.12,659.09,0.30344869]
[1748982583896,1.10881677,659.94,659.09,0.30344869]
[1748982584096,1.02396095,659.93,659.09,0.30344869]
[1748982584292,1.02396095,659.92,659.09,0.30344869]
[1748982584496,1.02396095,659.91,659.09,0.30344869]
[1748982584691,1.02396095,659.9,659.09,0.30344869]
[1748982584895,1.02396095,659.89,659.09,0.30344869]
[1748982585094,1.02396095,659.88,659.09,0.30344869]
[1748982585291,1.02396095,659.87,659.09,0.30344869]
[1748982585591,1.02396095,659.86,659.09,0.30344869]
[1748982585796,1.02396095,659.85,659.09,0.30344869]
[1748982586097,1.02396095,659.84,659.09,0.30344869]
[1748982586294,1.02396095,659.83,659.09,0.30344869]
[1748982586495,1.02396095,659.82,659.09,0.30344869]
[1748982586796,1.02396095,659.81,659.09,0.30344869]
[1748982586997,1.02396095,659.8,659.09,0.30344869]
[1748982587197,1.02396095,659.79,659.09,0.30344869]
[1748982587391,1.02396095,659.78,659.09,0.30344869]
[1748982587590,1.02396095,659.77,659.09,0.30344869]
[1748982587798,1.10881677,659.75,659.09,0.30344869]
[1748982588001,1.02396095,659.74,659.09,0.30344869]
[1748982588205,1.02396095,659.73,659.09,0.30344869]
[1748982588398,1.02396095,659.72,659.09,0.30344869]
[1748982588598,1.10881677,659.74,659.09,0.30344869]
[1748982588599,1.02396095,659.71,659.09,0.30344869]
[1748982588795,1.02396095,659.7,659.09,0.30344869]
[1748982589001,3.71005592,660.47,659.09,0.30344869]
[1748982589002,1.02396095,659.69,659.09,0.30344869]
[1748982589201,1.02396095,659.68,659.09,0.30344869]
[1748982589400,1.02396095,659.67,659.09,0.30344869]
[1748982589597,1.02396095,659.66,659.09,0.30344869]
[1748982589801,1.02396095,659.65,659.09,0.30344869]
[1748982589997,1.10881677,659.7,659.09,0.30344869]
[1748982589998,1.02396095,659.64,659.09,0.30344869]
[1748982590201,1.02396095,659.63,659.09,0.30344869]
[1748982590502,1.02396095,659.62,659.09,0.30344869]
[1748982590699,1.10881677,659.7,659.09,0.30344869]
[1748982590700,1.02396095,659.61,659.09,0.30344869]
[1748982590898,1.02396095,659.6,659.09,0.30344869]
[1748982591100,1.02396095,659.59,659.09,0.30344869]
[1748982591305,1.02396095,659.58,659.09,0.30344869]
[1748982591505,1.02396095,659.57,659.09,0.30344869]
[1748982591703,1.02396095,659.56,659.09,0.30344869]
[1748982591898,1.02396095,659.55,659.09,0.30344869]
[1748982592101,1.02396095,659.54,659.09,0.30344869]
[1748982592406,1.02396095,659.53,659.09,0.30344869]
[1748982592705,1.02396095,659.52,659.09,0.30344869]
[1748982592905,1.02396095,659.51,659.09,0.30344869]
[1748982593106,1.10881677,659.7,659.09,0.30344869]
[1748982593308,1.02336369,659.69,659.09,0.30344869]
[1748982593508,1.02336369,659.68,659.09,0.30344869]
[1748982593706,1.02336369,659.67,659.09,0.30344869]
[1748982593902,1.10881677,659.74,659.09,0.30344869]
[1748982593903,1.02336369,659.66,659.09,0.30344869]
[1748982594207,1.02336369,659.65,659.09,0.30344869]
[1748982594407,1.02336369,659.64,659.09,0.30344869]
[1748982594609,1.02336369,659.63,659.09,0.30344869]
[1748982594807,1.02336369,659.62,659.09,0.30344869]
[1748982595004,1.02336369,659.61,659.09,0.30344869]
[1748982595205,1.4831859,659.85,659.09,0.30344869]
[1748982595510,1.10828232,659.74,659.09,0.30344869]
[1748982595711,1.02353132,659.73,659.09,0.30344869]
[1748982595911,1.02353132,659.72,659.09,0.30344869]
[1748982596210,1.02353132,659.71,659.09,0.30344869]
[1748982596414,1.02353132,659.7,659.09,0.30344869]
[1748982596611,1.02353132,659.69,659.09,0.30344869]
[1748982596808,1.02353132,659.68,659.09,0.78185691]
[1748982597112,1.02353132,659.67,659.09,0.78185691]
[1748982597412,1.02353132,659.66,659.09,0.78185691]
[1748982597613,1.02353132,659.65,659.09,0.78185691]
[1748982597814,1.02353132,659.64,659.11,0.47840822]
[1748982598114,1.02353132,659.63,659.12,0.30343488]
[1748982598312,1.02353132,659.62,659.12,0.30343488]
[1748982598511,1.02353132,659.61,659.12,0.30343488]
[1748982598712,1.02353132,659.6,659.13,0.47840822]
[1748982599013,1.02389587,659.59,659.14,0.30342567]
[1748982599215,1.02389587,659.58,659.14,0.30342567]